lending/lending_fUSD_20250719
["ID","MTS","AMOUNT","RATE_DAILY","PERIOD"]
[373271297,1752925933569,-480.0,0.00020273,2]
[373271298,1752925933578,-480.0,0.00020273,2]
[373271299,1752925933588,-480.0,0.00020273,2]
[373271300,1752925933597,-480.0,0.00020273,2]
[373271301,1752925933606,-480.0,0.00020273,2]
[373271302,1752925933615,-480.0,0.00020273,2]
[373271303,1752925933625,-480.0,0.00020273,2]
[373271304,1752925933634,-528.6,0.00020273,2]
[373271305,1752925933644,-480.0,0.00020273,2]
[373271306,1752925933653,-576.59,0.00020273,2]
[373271307,1752925933663,-472.88,0.00020273,2]
[373271308,1752925933672,-447.87,0.00020273,2]
[373271309,1752925933682,-255.94,0.00020273,2]
[373271310,1752925933691,-480.0,0.00020273,2]
[373271311,1752925933701,-480.0,0.00020273,2]
[373271312,1752925933711,-480.0,0.00020273,2]
[373271313,1752925933720,-480.0,0.00020273,2]
[373271314,1752925934156,-480.0,0.00020273,2]
[373271315,1752925934178,-480.0,0.00020273,2]
[373271316,1752925934200,-480.0,0.00020273,2]
[373271317,1752925934223,-337.86,0.00020273,2]
[373271318,1752925934241,-537.19876272,0.00020273,2]
[373271319,1752925934252,-568.37,0.00020273,2]
[373271320,1752925934262,-480.0,0.00020273,2]
[373271321,1752925934271,-480.0,0.00020273,2]
[373271322,1752925934281,-865.04,0.00020273,2]
[373271323,1752925934291,-480.0,0.00020273,2]
[373271324,1752925934301,-590.07,0.00020273,2]
[373271325,1752925934311,-480.0,0.00020273,2]
[373271326,1752925934322,-480.0,0.00020273,2]
[373271327,1752925934333,-338.5482244,0.00020273,2]
[373271328,1752925934342,-534.76,0.00020273,2]
[373271329,1752925934354,-480.0,0.00020273,2]
[373271330,1752925934366,-380.96,0.00020273,2]
[373271331,1752925934381,-3423.93,0.00020273,2]
[373271332,1752925934390,-480.0,0.00020273,2]
[373271333,1752925934399,-480.0,0.00020273,2]
[373271334,1752925934409,-480.0,0.00020273,2]
[373271335,1752925934419,-480.0,0.00020273,2]
[373271336,1752925934428,-480.0,0.00020273,2]
[373271337,1752925934438,-480.0,0.00020273,2]
[373271338,1752925934447,-480.0,0.00020273,2]
[373271339,1752925934456,-480.0,0.00020273,2]
[373271340,1752925934466,-480.0,0.00020273,2]
[373271341,1752925934475,-483.36,0.00020273,2]
[373271342,1752925934485,-534.08,0.00020273,2]
[373271343,1752925934494,-480.0,0.00020273,2]
[373271344,1752925934504,-441.75398347,0.00020273,2]
[373271345,1752925934514,-350.32,0.00020273,2]
[373271346,1752925934523,-610.36,0.00020273,2]
[373271347,1752925934532,-706.76,0.00020273,2]
[373271348,1752925934542,-480.0,0.00020273,2]
[373271349,1752925934552,-1249.6,0.00020273,2]
[373271350,1752925934562,-480.0,0.00020273,2]
[373271351,1752925934571,-517.22,0.00020273,2]
[373271352,1752925934581,-545.98,0.00020273,2]
[373271353,1752925934591,-525.96,0.00020273,2]
[373271354,1752925934600,-480.0,0.00020273,2]
[373271355,1752925934609,-274.22,0.00020273,2]
[373271356,1752925934619,-527.90298867,0.00020273,2]
[373271357,1752925934628,-426.93,0.00020273,2]
[373271358,1752925934637,-728.86,0.00020273,2]
[373271359,1752925934646,-1316.89,0.00020273,2]
[373271360,1752925934655,-480.0,0.00020273,2]
[373271361,1752925934664,-815.4,0.00020273,2]
[373271362,1752925934675,-1101.71,0.00020273,2]
[373271363,1752925934685,-480.0,0.00020273,2]
[373271364,1752925934704,-480.0,0.00020273,2]
[373271365,1752925934719,-748.45,0.00020273,2]
[373271366,1752925934729,-1336.055073,0.00020273,2]
[373271367,1752925934742,-573.22,0.00020273,2]
[373271368,1752925934761,-1293.804523,0.00020273,2]
[373271369,1752925934771,-480.0,0.00020273,2]
[373271370,1752925934781,-1617.28,0.00020273,2]
[373271371,1752925934790,-745.78,0.00020273,2]
[373271372,1752925934800,-690.32,0.00020273,2]
[373271373,1752925934810,-1070.92,0.00020273,2]
[373271374,1752925934820,-658.12,0.00020273,2]
[373271375,1752925934829,-934.12,0.00020273,2]
[373271376,1752925934839,-480.0,0.00020273,2]
[373271377,1752925934848,-1174.42,0.00020273,2]
[373271378,1752925934858,-480.0,0.00020273,2]
[373271379,1752925934867,-1202.04,0.00020273,2]
[373271380,1752925934877,-480.0,0.00020273,2]
[373271381,1752925934887,-815.86,0.00020273,2]
[373271382,1752925934896,-1628.87,0.00020273,2]
[373271383,1752925934906,-1494.63,0.00020273,2]
[373271384,1752925934915,-480.0,0.00020273,2]
[373271385,1752925934925,-830.69,0.00020273,2]
[373271386,1752925934934,-480.0,0.00020273,2]
[373271387,1752925934944,-480.0,0.00020273,2]
[373271388,1752925934954,-480.0,0.00020273,2]
[373271389,1752925934964,-330.011168,0.00020273,2]
[373271390,1752925934974,-543.78,0.00020273,2]
[373271391,1752925934985,-2089.05,0.00020273,2]
[373271392,1752925934995,-657.72,0.00020273,2]
[373271393,1752925935005,-1437.33,0.00020273,2]
[373271394,1752925935014,-480.0,0.00020273,2]
[373271395,1752925935024,-537.05,0.00020273,2]
[373271396,1752925935034,-480.0,0.00020273,2]
[373271397,1752925935044,-480.0,0.00020273,2]
[373271398,1752925935053,-635.8,0.00020273,2]
[373271399,1752925935063,-581.67,0.00020273,2]
[373271400,1752925935071,-516.44,0.00020273,2]
[373271401,1752925935080,-1539.584669,0.00020273,2]
[373271402,1752925935090,-480.0,0.00020273,2]
[373271403,1752925935099,-480.0,0.00020273,2]
[373271404,1752925935108,-2843.45,0.00020273,2]
[373271405,1752925935117,-480.0,0.00020273,2]
[373271406,1752925935126,-935.75,0.00020273,2]
[373271407,1752925935135,-480.0,0.00020273,2]
[373271408,1752925935144,-553.19,0.00020273,2]
[373271409,1752925935153,-629.13,0.00020273,2]
[373271410,1752925935162,-789.27,0.00020273,2]
[373271411,1752925935172,-480.0,0.00020273,2]
[373271412,1752925935181,-480.0,0.00020273,2]
[373271413,1752925935190,-480.0,0.00020273,2]
[373271414,1752925935200,-534.81,0.00020273,2]
[373271415,1752925935210,-480.0,0.00020273,2]
[373271416,1752925935219,-291.80266539,0.00020273,2]
[373271417,1752925935231,-937.31,0.00020273,2]
[373271418,1752925935242,-480.0,0.00020273,2]
[373271419,1752925935252,-480.0,0.00020273,2]
[373271420,1752925935261,-480.0,0.00020273,2]
[373271421,1752925935270,-2978.15,0.00020273,2]
[373271422,1752925935280,-480.0,0.00020273,2]
[373271423,1752925935291,-211.82017221,0.00020273,2]
[373271424,1752925935300,-588.55,0.00020273,2]
[373271425,1752925935310,-480.0,0.00020273,2]
[373271426,1752925935320,-534.31,0.00020273,2]
[373271427,1752925935329,-480.0,0.00020273,2]
[373271428,1752925935339,-480.0,0.00020273,2]
[373271429,1752925935348,-874.31,0.00020273,2]
[373271430,1752925935357,-5707.74,0.00020273,2]
[373271431,1752925935366,-742.13,0.00020273,2]
[373271432,1752925935376,-1001.03,0.00020273,2]
[373271433,1752925935386,-1089.17,0.00020273,2]
[373271434,1752925935395,-480.0,0.00020273,2]
[373271435,1752925935405,-480.0,0.00020273,2]
[373271436,1752925935414,-480.0,0.00020273,2]
[373271437,1752925935424,-480.0,0.00020273,2]
[373271438,1752925935433,-480.0,0.00020273,2]
[373271439,1752925935442,-827.74,0.00020273,2]
[373271440,1752925935451,-883.65,0.00020273,2]
[373271441,1752925935461,-985.41,0.00020273,2]
[373271442,1752925935470,-630.85,0.00020273,2]
[373271443,1752925935479,-480.0,0.00020273,2]
[373271444,1752925935488,-480.0,0.00020273,2]
[373271445,1752925935498,-725.32,0.00020273,2]
[373271446,1752925935507,-546.59,0.00020273,2]
[373271447,1752925935517,-307.76,0.00020273,2]
[373271448,1752925935526,-961.48,0.00020273,2]
[373271449,1752925935536,-594.58,0.00020273,2]
[373271450,1752925935545,-480.0,0.00020273,2]
[373271451,1752925935554,-480.0,0.00020273,2]
[373271452,1752925935564,-480.0,0.00020273,2]
[373271453,1752925935573,-1312.32,0.00020273,2]
[373271454,1752925935582,-480.0,0.00020273,2]
[373271455,1752925935591,-481.15,0.00020273,2]
[373271456,1752925935600,-3316.07,0.00020273,2]
[373271457,1752925935610,-480.0,0.00020273,2]
[373271458,1752925935619,-493.61,0.00020273,2]
[373271459,1752925935629,-176.19101646,0.00020273,2]
[373271460,1752925935638,-480.0,0.00020273,2]
[373271461,1752925935647,-480.0,0.00020273,2]
[373271462,1752925935656,-480.0,0.00020273,2]
[373271463,1752925935666,-1168.4,0.00020273,2]
[373271464,1752925935675,-3075.77,0.00020273,2]
[373271465,1752925935684,-558.22,0.00020273,2]
[373271466,1752925935693,-480.0,0.00020273,2]
[373271467,1752925935703,-538.42,0.00020273,2]
[373271468,1752925935713,-480.0,0.00020273,2]
[373271469,1752925935723,-2213.01,0.00020273,2]
[373271470,1752925935733,-617.33,0.00020273,2]
[373271471,1752925935742,-480.0,0.00020273,2]
[373271472,1752925935751,-480.0,0.00020273,2]
[373271473,1752925935760,-480.0,0.00020273,2]
[373271474,1752925935769,-480.0,0.00020273,2]
[373271475,1752925935778,-480.0,0.00020273,2]
[373271476,1752925935787,-480.0,0.00020273,2]
[373271477,1752925935797,-1282.83,0.00020273,2]
[373271478,1752925935806,-480.0,0.00020273,2]
[373271479,1752925935815,-480.0,0.00020273,2]
[373271480,1752925935824,-480.0,0.00020273,2]
[373271481,1752925935833,-480.0,0.00020273,2]
[373271482,1752925935842,-643.18,0.00020273,2]
[373271483,1752925935852,-901.37,0.00020273,2]
[373271484,1752925935861,-480.0,0.00020273,2]
[373271485,1752925935871,-1874.62,0.00020273,2]
[373271486,1752925935880,-480.0,0.00020273,2]
[373271487,1752925935889,-480.0,0.00020273,2]
[373271488,1752925935898,-2423.29,0.00020273,2]
[373271489,1752925935908,-480.0,0.00020273,2]
[373271490,1752925935917,-480.0,0.00020273,2]
[373271491,1752925935927,-525.59013176,0.00020273,2]
[373271492,1752925935935,-240.73889108,0.00020273,2]
[373271493,1752925935945,-733.01,0.00020273,2]
[373271494,1752925935955,-570.78,0.00020273,2]
[373271495,1752925935964,-853.43,0.00020273,2]
[373271496,1752925935973,-1074.29,0.00020273,2]
[373271497,1752925935983,-769.55,0.00020273,2]
[373271498,1752925935993,-480.0,0.00020273,2]
[373271499,1752925936002,-480.0,0.00020273,2]
[373271500,1752925936012,-1297.2,0.00020273,2]
[373271501,1752925936021,-359.7,0.00020273,2]
[373271502,1752925936031,-1019.51,0.00020273,2]
[373271503,1752925936040,-642.8,0.00020273,2]
[373271504,1752925936050,-480.0,0.00020273,2]
[373271505,1752925936059,-480.0,0.00020273,2]
[373271506,1752925936068,-548.31,0.00020273,2]
[373271507,1752925936078,-480.0,0.00020273,2]
[373271508,1752925936088,-1847.27,0.00020273,2]
[373271509,1752925936097,-480.0,0.00020273,2]
[373271510,1752925936106,-4709.51,0.00020273,2]
[373271511,1752925936115,-927.42,0.00020273,2]
[373271512,1752925936125,-480.0,0.00020273,2]
[373271513,1752925936134,-913.62,0.00020273,2]
[373271514,1752925936144,-480.0,0.00020273,2]
[373271515,1752925936154,-506.89,0.00020273,2]
[373271516,1752925936163,-859.02,0.00020273,2]
[373271517,1752925936172,-781.8,0.00020273,2]
[373271518,1752925936182,-1631.07,0.00020273,2]
[373271519,1752925936191,-644.67,0.00020273,2]
[373271520,1752925936200,-480.0,0.00020273,2]
[373271521,1752925936210,-596.88,0.00020273,2]
[373271522,1752925936220,-555.41,0.00020273,2]
[373271523,1752925936230,-480.0,0.00020273,2]
[373271524,1752925936241,-480.0,0.00020273,2]
[373271525,1752925936252,-480.0,0.00020273,2]
[373271526,1752925936262,-553.68,0.00020273,2]
[373271527,1752925936271,-480.0,0.00020273,2]
[373271528,1752925936280,-256.24084695,0.00020273,2]
[373271529,1752925936290,-3337.6,0.00020273,2]
[373271530,1752925936299,-520.06,0.00020273,2]
[373271531,1752925936308,-1000.0,0.00020273,2]
[373271532,1752925936319,-480.0,0.00020273,2]
[373271533,1752925936329,-874.98,0.00020273,2]
[373271534,1752925936339,-480.0,0.00020273,2]
[373271535,1752925936348,-431.31,0.00020273,2]
[373271536,1752925936360,-480.0,0.00020273,2]
[373271537,1752925936370,-480.0,0.00020273,2]
[373271538,1752925936380,-1018.91,0.00020273,2]
[373271539,1752925936390,-480.0,0.00020273,2]
[373271540,1752925936400,-336.69878357,0.00020273,2]
[373271541,1752925936411,-575.14,0.00020273,2]
[373271542,1752925936420,-1603.56,0.00020273,2]
[373271543,1752925936430,-480.0,0.00020273,2]
[373271544,1752925936439,-950.21,0.00020273,2]
[373271545,1752925936450,-716.19,0.00020273,2]
[373271546,1752925936460,-480.0,0.00020273,2]
[373271547,1752925936469,-480.0,0.00020273,2]
[373271548,1752925936480,-480.0,0.00020273,2]
[373271549,1752925936490,-480.0,0.00020273,2]
[373271550,1752925936499,-785.71,0.00020273,2]
[373271551,1752925936508,-653.01,0.00020273,2]
[373271552,1752925936518,-480.0,0.00020273,2]
[373271553,1752925936528,-480.0,0.00020273,2]
[373271554,1752925936537,-480.0,0.00020273,2]
[373271555,1752925936547,-802.07,0.00020273,2]
[373271556,1752925936558,-1379.0,0.00020273,2]
[373271557,1752925936568,-616.21,0.00020273,2]
[373271558,1752925936577,-480.0,0.00020273,2]
[373271559,1752925936587,-480.0,0.00020273,2]
[373271560,1752925936596,-622.48,0.00020273,2]
[373271561,1752925936606,-480.0,0.00020273,2]
[373271562,1752925936616,-14833.83,0.00020273,2]
[373271563,1752925936626,-480.0,0.00020273,2]
[373271564,1752925936635,-567.92,0.00020273,2]
[373271565,1752925936645,-500.0,0.00020274,2]
[373271566,1752925936655,-250.0,0.00020274,2]
[373271567,1752925936665,-454.0,0.00020274,2]
[373271568,1752925936675,-250.0,0.00020274,2]
[373271569,1752925936684,-1453.0,0.00020274,2]
[373271570,1752925936695,-500.0,0.00020274,2]
[373271571,1752925936704,-592.0,0.00020274,2]
[373271572,1752925936715,-500.0,0.00020368,2]
[373271573,1752925936724,-1639.68,0.00020382,2]
[373271574,1752925936735,-1721.04,0.00020382,2]
[373271575,1752925936748,-2456.39,0.00020382,2]
[373271576,1752925936762,-2456.39,0.00020382,2]
[373271577,1752925936772,-2456.39,0.00020382,2]
[373271578,1752925936782,-2456.39,0.00020382,2]
[373271579,1752925936791,-2456.4,0.00020382,2]
[373271580,1752925936801,-480.0,0.00020383,2]
[373271581,1752925936810,-262.70497031,0.00020383,2]
[373271582,1752925936820,-191.28898266,0.00020383,2]
[373271583,1752925936830,-480.0,0.00020383,2]
[373271584,1752925936839,-480.0,0.00020383,2]
[373271585,1752925936849,-480.0,0.00020383,2]
[373271586,1752925936858,-480.0,0.00020383,2]
[373271587,1752925936867,-480.0,0.00020383,2]
[373271588,1752925936877,-151.0,0.00020383,2]
[373271589,1752925936886,-151.0,0.00020383,2]
[373271590,1752925936896,-568.5,0.00020383,2]
[373271591,1752925936906,-151.0,0.00020383,2]
[373271592,1752925936916,-480.0,0.00020383,2]
[373271593,1752925936926,-480.0,0.00020383,2]
[373271594,1752925936936,-480.0,0.00020383,2]
[373271595,1752925936945,-151.305741,0.00020383,2]
[373271596,1752925936955,-480.0,0.00020383,2]
[373271597,1752925936964,-480.0,0.00020383,2]
[373271598,1752925936973,-579.42131849,0.00020383,2]
[373271599,1752925936984,-151.0,0.00020383,2]
[373271600,1752925936994,-480.0,0.00020383,2]
[373271601,1752925937004,-341.7005703,0.00020383,2]
[373271602,1752925937014,-480.0,0.00020383,2]
[373271603,1752925937024,-454.08,0.00020383,2]
[373271604,1752925937033,-209.13,0.00020383,2]
[373271605,1752925937043,-151.0,0.00020383,2]
[373271606,1752925937052,-154.176575,0.00020383,2]
[373271607,1752925937062,-480.0,0.00020383,2]
[373271608,1752925937071,-154.176575,0.00020383,2]
[373271609,1752925937081,-154.523466,0.00020383,2]
[373271610,1752925937091,-151.0,0.00020383,2]
[373271611,1752925937100,-151.625884,0.00020383,2]
[373271612,1752925937109,-480.0,0.00020383,2]
[373271613,1752925937119,-151.0,0.00020383,2]
[373271614,1752925937128,-151.0,0.00020383,2]
[373271615,1752925937138,-480.0,0.00020383,2]
[373271616,1752925937148,-480.0,0.00020383,2]
[373271617,1752925937158,-480.0,0.00020383,2]
[373271618,1752925937168,-493.77,0.00020383,2]
[373271619,1752925937178,-480.0,0.00020383,2]
[373271620,1752925937187,-480.0,0.00020383,2]
[373271621,1752925937197,-476.75,0.00020383,2]
[373271622,1752925937207,-432.81,0.00020383,2]
[373271623,1752925937217,-480.0,0.00020383,2]
[373271624,1752925937227,-480.0,0.00020383,2]
[373271625,1752925937239,-480.0,0.00020383,2]
[373271626,1752925937251,-480.0,0.00020383,2]
[373271627,1752925937262,-480.0,0.00020383,2]
[373271628,1752925937271,-623.6,0.00020383,2]
[373271629,1752925937282,-480.0,0.00020383,2]
[373271630,1752925937292,-480.0,0.00020383,2]
[373271631,1752925937303,-374.52,0.00020383,2]
[373271632,1752925937312,-424.37,0.00020383,2]
[373271633,1752925937324,-382.14,0.00020383,2]
[373271634,1752925937335,-480.0,0.00020383,2]
[373271635,1752925937345,-404.26,0.00020383,2]
[373271636,1752925937355,-480.0,0.00020383,2]
[373271637,1752925937365,-480.0,0.00020383,2]
[373271638,1752925937375,-480.0,0.00020383,2]
[373271639,1752925937385,-480.0,0.00020383,2]
[373271640,1752925937395,-480.0,0.00020383,2]
[373271641,1752925937405,-480.0,0.00020383,2]
[373271642,1752925937415,-480.0,0.00020383,2]
[373271643,1752925937425,-377.6,0.00020383,2]
[373271644,1752925937435,-480.0,0.00020383,2]
[373271645,1752925937445,-492.89080986,0.00020383,2]
[373271646,1752925937620,-480.0,0.00020383,2]
[373271647,1752925937643,-480.0,0.00020383,2]
[373271648,1752925937653,-480.0,0.00020383,2]
[373271649,1752925937663,-480.0,0.00020383,2]
[373271650,1752925937673,-480.0,0.00020383,2]
[373271651,1752925937683,-480.0,0.00020383,2]
[373271652,1752925937692,-344.66846657,0.00020383,2]
[373271653,1752925937702,-151.0,0.00020383,2]
[373271654,1752925937712,-238.33156685,0.00020383,2]
[373271655,1752925937722,-480.0,0.00020383,2]
[373271656,1752925937731,-480.0,0.00020383,2]
[373271657,1752925937742,-480.0,0.00020383,2]
[373271658,1752925937751,-551.9,0.00020383,2]
[373271659,1752925937761,-235.26834293,0.00020383,2]
[373271660,1752925937771,-480.0,0.00020383,2]
[373271661,1752925937781,-480.0,0.00020383,2]
[373271662,1752925937792,-480.0,0.00020383,2]
[373271663,1752925937802,-494.23,0.00020383,2]
[373271664,1752925937812,-480.0,0.00020383,2]
[373271665,1752925937822,-480.0,0.00020383,2]
[373271666,1752925937832,-480.0,0.00020383,2]
[373271667,1752925937841,-480.0,0.00020383,2]
[373271668,1752925937851,-662.26,0.00020383,2]
[373271669,1752925937861,-480.0,0.00020383,2]
[373271670,1752925937872,-480.0,0.00020383,2]
[373271671,1752925937882,-474.08511548,0.00020383,2]
[373271672,1752925937892,-480.0,0.00020383,2]
[373271673,1752925937901,-480.0,0.00020383,2]
[373271674,1752925937911,-480.0,0.00020383,2]
[373271675,1752925937921,-151.0,0.00020383,2]
[373271676,1752925937931,-480.0,0.00020383,2]
[373271677,1752925937940,-244.36,0.00020383,2]
[373271678,1752925937950,-480.0,0.00020383,2]
[373271679,1752925937960,-480.0,0.00020383,2]
[373271680,1752925937969,-487.69693898,0.00020383,2]
[373271681,1752925937979,-253.5006371,0.00020383,2]
[373271682,1752925937988,-161.55,0.00020383,2]
[373271683,1752925937998,-480.0,0.00020383,2]
[373271684,1752925938007,-258.11878192,0.00020383,2]
[373271685,1752925938017,-480.0,0.00020383,2]
[373271686,1752925938027,-151.0,0.00020383,2]
[373271687,1752925938037,-480.0,0.00020383,2]
[373271688,1752925938046,-451.1,0.00020383,2]
[373271689,1752925938056,-480.0,0.00020383,2]
[373271690,1752925938066,-480.0,0.00020383,2]
[373271691,1752925938075,-480.0,0.00020383,2]
[373271692,1752925938086,-480.0,0.00020383,2]
[373271693,1752925938096,-540.62,0.00020383,2]
[373271694,1752925938105,-480.0,0.00020383,2]
[373271695,1752925938115,-480.0,0.00020383,2]
[373271696,1752925938125,-729.46,0.00020383,2]
[373271697,1752925938135,-151.0,0.00020383,2]
[373271698,1752925938145,-480.0,0.00020383,2]
[373271699,1752925938155,-480.0,0.00020383,2]
[373271700,1752925938166,-480.0,0.00020383,2]
[373271701,1752925938176,-480.0,0.00020383,2]
[373271702,1752925938186,-480.0,0.00020383,2]
[373271703,1752925938197,-480.0,0.00020383,2]
[373271704,1752925938207,-151.0,0.00020383,2]
[373271705,1752925938217,-241.75226574,0.00020383,2]
[373271706,1752925938227,-535.95,0.00020383,2]
[373271707,1752925938238,-151.0,0.00020383,2]
[373271708,1752925938252,-528.6,0.00020383,2]
[373271709,1752925938262,-480.0,0.00020383,2]
[373271710,1752925938272,-576.59,0.00020383,2]
[373271711,1752925938283,-151.0,0.00020383,2]
[373271712,1752925938293,-480.0,0.00020383,2]
[373271713,1752925938304,-480.0,0.00020383,2]
[373271714,1752925938314,-480.0,0.00020383,2]
[373271715,1752925938326,-480.0,0.00020383,2]
[373271716,1752925938336,-480.0,0.00020383,2]
[373271717,1752925938346,-480.0,0.00020383,2]
[373271718,1752925938357,-480.0,0.00020383,2]
[373271719,1752925938368,-568.37,0.00020383,2]
[373271720,1752925938378,-480.0,0.00020383,2]
[373271721,1752925938389,-480.0,0.00020383,2]
[373271722,1752925938398,-865.04,0.00020383,2]
[373271723,1752925938409,-584.55,0.00020383,2]
[373271724,1752925938419,-590.07,0.00020383,2]
[373271725,1752925938429,-480.0,0.00020383,2]
[373271726,1752925938439,-480.0,0.00020383,2]
[373271727,1752925938449,-534.76,0.00020383,2]
[373271728,1752925938459,-480.0,0.00020383,2]
[373271729,1752925938469,-3423.93,0.00020383,2]
[373271730,1752925938479,-480.0,0.00020383,2]
[373271731,1752925938491,-480.0,0.00020383,2]
[373271732,1752925938501,-480.0,0.00020383,2]
[373271733,1752925938511,-480.0,0.00020383,2]
[373271734,1752925938521,-480.0,0.00020383,2]
[373271735,1752925938531,-480.0,0.00020383,2]
[373271736,1752925938542,-480.0,0.00020383,2]
[373271737,1752925938552,-480.0,0.00020383,2]
[373271738,1752925938562,-480.0,0.00020383,2]
[373271739,1752925938571,-483.36,0.00020383,2]
[373271740,1752925938581,-534.08,0.00020383,2]
[373271741,1752925938590,-480.0,0.00020383,2]
[373271742,1752925938599,-610.36,0.00020383,2]
[373271743,1752925938609,-706.76,0.00020383,2]
[373271744,1752925938619,-480.0,0.00020383,2]
[373271745,1752925938629,-1249.6,0.00020383,2]
[373271746,1752925938639,-182.66,0.00020383,2]
[373271747,1752925938649,-517.22,0.00020383,2]
[373271748,1752925938659,-545.98,0.00020383,2]
[373271749,1752925938669,-525.96,0.00020383,2]
[373271750,1752925938679,-480.0,0.00020383,2]
[373271751,1752925938689,-167.014038,0.00020383,2]
[373271752,1752925938699,-728.86,0.00020383,2]
[373271753,1752925938708,-1316.89,0.00020383,2]
[373271754,1752925938718,-364.8246915,0.00020383,2]
[373271755,1752925938728,-159.9565,0.00020383,2]
[373271756,1752925938739,-815.4,0.00020383,2]
[373271757,1752925938750,-1101.71,0.00020383,2]
[373271758,1752925938760,-480.0,0.00020383,2]
[373271759,1752925938770,-480.0,0.00020383,2]
[373271760,1752925938780,-748.45,0.00020383,2]
[373271761,1752925938790,-573.22,0.00020383,2]
[373271762,1752925938799,-1336.055073,0.00020383,2]
[373271763,1752925938809,-1293.804523,0.00020383,2]
[373271764,1752925938820,-480.0,0.00020383,2]
[373271765,1752925938830,-1617.28,0.00020383,2]
[373271766,1752925938840,-745.78,0.00020383,2]
[373271767,1752925938851,-690.32,0.00020383,2]
[373271768,1752925938862,-1070.92,0.00020383,2]
[373271769,1752925938871,-658.12,0.00020383,2]
[373271770,1752925938882,-934.12,0.00020383,2]
[373271771,1752925938892,-480.0,0.00020383,2]
[373271772,1752925938903,-1202.04,0.00020383,2]
[373271773,1752925938912,-1174.42,0.00020383,2]
[373271774,1752925938923,-350.50966153,0.00020383,2]
[373271775,1752925938933,-480.0,0.00020383,2]
[373271776,1752925938943,-815.86,0.00020383,2]
[373271777,1752925938953,-1628.87,0.00020383,2]
[373271778,1752925938963,-1494.63,0.00020383,2]
[373271779,1752925938973,-480.0,0.00020383,2]
[373271780,1752925938984,-830.69,0.00020383,2]
[373271781,1752925938994,-519.26242356,0.00020383,2]
[373271782,1752925939004,-480.0,0.00020383,2]
[373271783,1752925939014,-480.0,0.00020383,2]
[373271784,1752925939024,-543.78,0.00020383,2]
[373271785,1752925939034,-2089.05,0.00020383,2]
[373271786,1752925939043,-657.72,0.00020383,2]
[373271787,1752925939053,-1437.33,0.00020383,2]
[373271788,1752925939063,-480.0,0.00020383,2]
[373271789,1752925939073,-537.05,0.00020383,2]
[373271790,1752925939083,-480.0,0.00020383,2]
[373271791,1752925939093,-480.0,0.00020383,2]
[373271792,1752925939102,-635.8,0.00020383,2]
[373271793,1752925939112,-581.67,0.00020383,2]
[373271794,1752925939122,-516.44,0.00020383,2]
[373271795,1752925939132,-1539.584669,0.00020383,2]
[373271796,1752925939142,-480.0,0.00020383,2]